bitfinex-derivatives/quotes_BNBF0:USTF0_20250309
["timestamp","ask_amount","ask_price","bid_price","bid_amount"]
[1741493679107,0.31271136,588.29,586.78,5.37684324]
[1741493679306,0.31271136,588.31,586.78,5.37684324]
[1741493679505,0.31271136,588.3,586.78,5.37684324]
[1741493679706,1.26952077,588.2,586.87,1.27617162]
[1741493679906,0.31271136,588.19,586.89,0.34077936]
[1741493681709,0.29620046,588.18,586.89,0.34077936]
[1741493681909,0.31271136,588.17,586.89,0.34077936]
[1741493682608,1.58223213,588.17,586.89,0.34077936]
[1741493682805,0.31271136,588.16,586.89,0.34077936]
[1741493683208,0.31271136,588.16,586.9,5.371]
[1741493683503,0.31271136,588.16,586.92,0.34076194]
[1741493685612,0.31271136,588.16,586.92,1.61693356]
[1741493685807,0.60891687,588.15,586.92,1.61693356]
[1741493686009,0.31271136,588.14,586.92,1.61693356]
[1741493687708,1.26952077,588.14,586.92,0.34076194]
[1741493687906,0.31274788,588.13,586.92,0.34076194]
[1741493688708,0.29622442,588.12,586.92,0.34076194]
[1741493693511,1.26952077,588.32,586.92,0.34076194]
[1741493693707,0.31273164,588.31,586.92,0.34076194]
[1741493693906,0.29620172,588.11,586.92,0.34076194]
[1741493694105,1.26952077,588.32,586.92,0.34076194]
[1741493694309,0.31273164,588.31,586.92,0.34076194]
[1741493694511,0.31273164,588.34,586.92,0.34076194]
[1741493694712,0.31273164,588.33,586.92,0.34076194]
[1741493694911,0.29619794,588.3,586.92,0.34076194]
[1741493695113,0.31273164,588.29,586.92,0.34076194]
[1741493695507,0.3127435,588.28,586.92,0.34076194]
[1741493695708,0.3127435,588.29,586.92,0.34076194]
[1741493695910,0.3127435,588.28,586.92,0.34076194]
[1741493696106,0.3127435,588.29,586.92,0.34076194]
[1741493696311,0.3127435,588.28,586.92,0.34076194]
[1741493696608,0.3127435,588.27,586.92,0.34076194]
[1741493696814,0.3127435,588.26,586.92,0.34076194]
[1741493699517,0.3127435,588.26,586.92,1.21276194]
[1741493699716,0.3127435,588.32,586.92,1.21276194]
[1741493700018,0.29620677,588.25,586.92,1.21276194]
[1741493700213,0.3127435,588.24,586.92,1.21276194]
[1741493700417,0.3127435,588.35,586.92,2.11276194]
[1741493700617,0.3127435,588.34,586.92,2.11276194]
[1741493700817,1.26952077,588.36,586.92,2.11276194]
[1741493700818,0.29619416,588.23,586.92,2.11276194]
[1741493701017,0.3127435,588.22,586.92,2.11276194]
[1741493701218,0.3127435,588.35,586.92,2.11276194]
[1741493701517,0.3127435,588.34,586.92,2.11276194]
[1741493701718,1.58226427,588.35,586.92,2.11276194]
[1741493701918,0.3127435,588.34,586.92,2.11276194]
[1741493702317,0.31273466,588.33,586.92,2.11276194]
[1741493702518,0.29619542,588.33,586.92,3.12276194]
[1741493702819,0.31273466,588.32,586.92,3.12276194]
[1741493704220,0.29619542,588.33,586.92,3.12276194]
[1741493705520,1.26952077,588.35,586.92,3.12276194]
[1741493705720,0.29618282,588.32,586.92,3.12276194]
[1741493708514,1.26952077,588.67,586.92,3.12276194]
[1741493708717,0.33976046,588.65,586.92,3.12276194]
[1741493708925,0.31273609,588.64,586.92,3.12276194]
[1741493709122,1.26952077,588.6,586.92,3.12276194]
[1741493709422,0.33980087,588.58,586.92,3.12276194]
[1741493709721,0.31273609,588.57,586.92,3.12276194]
[1741493709921,0.33981242,588.56,586.92,3.12276194]
[1741493710122,0.31273609,588.55,586.92,3.12276194]
[1741493710322,0.33982397,588.54,586.92,3.12276194]
[1741493710523,0.31273609,588.53,586.92,3.19376194]
[1741493710821,0.33983551,588.52,586.92,3.19376194]
[1741493711122,0.31273609,588.51,586.92,3.19376194]
[1741493711317,0.33984706,588.5,586.92,3.19376194]
[1741493711521,0.31273609,588.49,586.92,3.19376194]
[1741493711717,0.33985861,588.48,586.92,3.19376194]
[1741493711922,0.31273609,588.47,586.92,3.19376194]
[1741493712121,0.33987016,588.46,586.92,3.19376194]
[1741493712317,0.31273609,588.45,586.92,3.19376194]
[1741493712519,0.33988172,588.44,586.92,3.19376194]
[1741493712720,0.31273609,588.43,586.92,3.19376194]
[1741493712921,0.33989327,588.42,586.92,3.19376194]
[1741493713120,0.31273609,588.41,586.92,3.19376194]
[1741493713317,0.33990482,588.4,586.92,3.19376194]
[1741493713520,0.31273609,588.39,586.92,3.82276194]
[1741493713718,0.65264669,588.39,586.92,3.82276194]
[1741493713918,0.31273609,588.38,586.92,3.82276194]
[1741493715720,0.29619038,588.37,586.92,3.82276194]
[1741493715924,0.31273609,588.36,586.92,3.82276194]
[1741493719031,1.26952077,588.27,586.92,3.82276194]
[1741493719233,0.31269693,588.26,586.92,3.82276194]
[1741493720834,1.5822271,588.25,586.92,3.82276194]
[1741493721034,0.31270633,588.24,586.92,3.82276194]
[1741493722536,0.31270633,588.24,586.92,4.83876194]
[1741493724740,0.29619794,588.23,586.92,4.83876194]
[1741493724935,0.31270633,588.22,586.92,4.83876194]
[1741493725141,1.26952077,588.13,586.92,4.83876194]
[1741493725341,0.31270633,588.12,586.92,4.83876194]
[1741493727640,0.29623576,588.11,586.92,4.83876194]
[1741493727844,0.31270633,588.1,586.92,4.83876194]
[1741493728439,0.31270633,588.1,586.92,5.47576194]
[1741493731150,0.29623576,588.11,586.92,5.47576194]
[1741493731350,0.3127728,588.1,586.92,5.47576194]
[1741493731951,0.29623576,588.11,586.92,5.47576194]
[1741493732144,0.31277302,588.1,586.92,5.47576194]
[1741493735753,0.29625089,588.09,586.92,5.47576194]
[1741493736054,0.31277302,588.08,586.92,5.47576194]
[1741493737550,0.29625089,588.09,586.92,5.47576194]
[1741493737753,0.31282569,588.07,586.92,5.47576194]
[1741493737954,0.31282569,588.06,586.92,5.47576194]
[1741493738155,0.31282569,588.08,586.92,5.47576194]
[1741493738358,0.31282569,588.07,586.92,5.47576194]
[1741493738554,0.31282569,588.08,586.92,5.47576194]
[1741493738856,0.31282569,588.07,586.92,5.47576194]
[1741493739052,0.31282569,588.08,586.92,5.47576194]
[1741493739253,0.31282569,588.07,586.92,5.47576194]
[1741493739554,0.31284439,588.06,586.92,5.47576194]
[1741493739755,0.31284439,588.05,586.92,5.47576194]
[1741493739951,1.26952077,588.04,586.92,5.47576194]
[1741493740156,0.31284439,588.03,586.92,5.47576194]
[1741493741860,0.29629251,588.02,586.92,5.47576194]
[1741493742053,0.31284439,588.01,586.92,5.47576194]
[1741493743063,0.29629251,588.02,586.92,5.47576194]
[1741493743364,0.31291137,588.01,586.92,5.47576194]
[1741493744757,0.65304742,588.0,586.92,5.47576194]
[1741493744958,0.6530532,587.99,586.92,5.47576194]
[1741493745164,0.31291137,587.98,586.92,5.47576194]
[1741493745864,0.29634171,587.97,586.92,5.47576194]
[1741493746063,0.31291137,587.96,586.92,5.47576194]
[1741493746764,0.29634171,587.97,586.92,5.47576194]
[1741493746964,0.31291219,587.96,586.92,5.47576194]
[1741493747766,0.31291219,587.95,586.92,5.47576194]
[1741493747967,0.31291219,587.94,586.92,5.47576194]
[1741493748268,0.31291219,587.93,586.92,5.47576194]
[1741493748462,0.31291219,587.98,586.92,5.47576194]
[1741493748661,0.2963291,587.92,586.92,5.47576194]
[1741493749062,0.31291219,587.91,586.92,5.47576194]
[1741493750662,0.31291219,587.9,586.92,5.47576194]
[1741493750864,0.31291219,587.98,586.92,5.47576194]
[1741493751063,0.31291219,587.97,586.92,5.47576194]
[1741493751259,0.31291219,587.98,586.92,5.47576194]
[1741493751465,0.31291219,587.97,586.92,5.47576194]
[1741493751663,0.2963291,587.97,586.92,5.47576194]
[1741493751864,0.31291219,587.96,586.92,5.47576194]
[1741493752468,0.31291145,587.95,586.92,5.47576194]
[1741493752766,0.2963291,587.97,586.92,5.47576194]
[1741493752767,0.31291145,587.94,586.92,5.47576194]
[1741493752966,0.31291145,587.96,586.92,5.47576194]
[1741493753266,0.31291145,587.95,586.92,5.47576194]
[1741493753469,0.31291145,587.96,586.92,5.47576194]
[1741493753770,0.31291145,587.95,586.92,5.47576194]
[1741493753969,0.31291145,587.98,586.92,5.47576194]
[1741493754168,0.34014183,587.99,586.92,5.47576194]
[1741493754169,0.31291145,587.97,586.92,5.47576194]
[1741493754464,0.65307064,587.96,586.92,5.47576194]
[1741493754668,0.65307643,587.95,586.92,5.47576194]
[1741493755064,0.31291145,587.94,586.92,5.47576194]
[1741493755463,0.34017655,587.93,586.92,5.47576194]
[1741493755660,0.31291145,587.92,586.92,5.47576194]
[1741493757467,0.31291145,587.92,586.92,5.135]
[1741493757875,0.29637831,587.91,586.92,5.135]
[1741493758069,0.31301861,587.9,586.92,5.135]
[1741493758869,0.34019969,587.89,586.92,5.135]
[1741493759074,0.31301861,587.88,586.92,5.135]
[1741493759270,0.65322409,587.88,586.92,5.135]
[1741493759473,0.31301861,587.87,586.92,5.135]
[1741493759876,0.60940197,587.87,586.92,5.135]
[1741493760075,0.31301861,587.86,586.92,5.135]
[1741493761274,0.29638336,587.87,586.92,5.135]
[1741493761471,0.31301922,587.86,586.92,5.135]
[1741493762879,0.31301922,587.87,586.92,5.135]
[1741493763078,0.31301922,587.86,586.92,5.135]
[1741493763373,0.31301922,587.85,586.92,5.135]
[1741493763678,0.31301922,587.84,586.92,5.135]
[1741493765573,0.29636821,587.85,586.92,5.135]
[1741493768470,0.34020548,587.88,586.92,5.135]
[1741493769779,0.29631648,587.87,586.92,5.135]
[1741493771480,0.34020548,587.88,586.92,5.135]
[1741493772680,0.29627359,587.87,586.92,5.135]
[1741493774681,0.34020548,587.88,586.92,5.135]
[1741493775781,0.29629125,587.87,586.92,5.135]
[1741493777577,1.26952077,588.33,586.92,5.135]
[1741493777778,0.2962963,587.86,586.92,5.135]
[1741493778178,1.26952077,588.33,586.92,5.135]
[1741493778380,0.31293476,588.32,586.92,5.135]
[1741493778781,0.31293476,588.31,586.92,5.135]
[1741493778981,0.31293476,588.3,586.92,5.135]
[1741493779181,0.31293476,588.29,586.92,5.135]
[1741493779478,0.31293476,588.28,586.92,5.135]
[1741493779679,1.56580193,588.29,586.92,5.135]
[1741493779880,0.3129078,588.28,586.92,5.135]
[1741493780084,0.3129078,588.27,586.92,5.135]
[1741493780281,0.3129078,588.26,586.92,5.135]
[1741493780485,0.3129078,588.25,586.92,5.135]
[1741493780680,0.3129078,588.24,586.92,5.135]
[1741493780879,0.3129078,588.23,586.92,5.135]
[1741493781083,0.3129078,588.22,586.92,5.135]
[1741493781284,0.3129078,588.21,586.92,5.135]
[1741493781486,0.3129078,588.2,586.92,5.135]
[1741493781681,0.3129078,588.28,586.92,5.135]
[1741493781887,1.26952077,587.97,586.92,5.135]
[1741493782087,0.3129078,587.96,586.92,5.135]
[1741493782689,1.26952077,587.97,586.92,5.135]
[1741493785986,1.26952077,588.76,586.92,5.135]
[1741493786187,0.31284978,588.75,586.92,5.135]
[1741493788291,0.31284978,588.74,586.92,5.135]
[1741493788489,1.26952077,588.72,586.92,5.135]
[1741493788689,0.31284978,588.71,586.92,5.135]
[1741493788887,0.31284978,588.7,586.92,5.135]
[1741493789088,0.31284978,588.69,586.92,5.135]
[1741493789288,0.31284978,588.68,586.92,5.135]
[1741493789486,0.31284978,588.67,586.92,5.135]
[1741493789889,0.31284978,588.66,586.92,5.135]
[1741493790089,0.31284978,588.65,586.92,5.135]
[1741493790288,0.31284978,588.64,586.92,5.135]
[1741493790489,0.31284978,588.63,586.92,5.135]
[1741493790790,0.31284978,588.62,586.92,5.135]
[1741493791090,1.26952077,588.3,586.92,5.135]
[1741493791290,0.31284978,588.29,586.92,5.135]
[1741493791585,0.31284978,588.28,586.92,5.135]
[1741493791789,0.31284978,588.27,586.92,5.135]
[1741493791981,1.26952077,588.3,586.92,5.135]
[1741493791982,0.31284978,588.26,586.92,5.135]
[1741493792187,0.29625972,588.27,586.92,5.135]
[1741493792390,0.31284978,588.26,586.92,5.135]
[1741493792785,0.31284978,588.29,586.92,5.135]
[1741493792993,1.26952077,588.21,586.92,5.135]
[1741493793290,0.31290251,588.2,586.92,5.135]
[1741493793891,0.29627107,588.19,586.92,5.135]
[1741493794186,0.31290251,588.18,586.92,5.135]
[1741493795691,0.31290251,588.21,586.92,5.135]
[1741493795890,0.31290251,588.2,586.92,5.135]
[1741493796091,0.31290251,588.19,586.92,5.135]
[1741493796290,0.31290251,588.21,586.92,5.135]
[1741493796491,1.26952077,588.22,586.92,5.135]
[1741493796492,0.31290251,588.2,586.92,5.135]
[1741493796688,0.29626981,588.18,586.92,5.135]
[1741493796889,0.31290251,588.17,586.92,5.135]
[1741493798097,0.29626981,588.18,586.92,5.135]
[1741493798296,0.31284748,588.17,586.92,5.135]
[1741493798698,0.31284748,588.21,586.92,5.135]
[1741493798892,0.31284748,588.23,586.92,5.135]
[1741493799092,0.31284748,588.22,586.92,5.135]
[1741493799298,0.31284748,588.21,586.92,5.135]
[1741493799598,0.31284748,588.2,586.92,5.135]
[1741493799803,0.2962572,588.21,586.92,5.135]
[1741493800098,0.31284748,588.2,586.92,5.135]
[1741493801402,1.26952077,588.16,586.92,5.135]
[1741493801604,0.31284748,588.15,586.92,5.135]
[1741493802004,0.31283346,588.14,586.92,5.135]
[1741493802305,0.31283346,588.13,586.92,5.135]
[1741493803301,0.31283261,588.12,586.92,5.135]
[1741493803504,0.31283261,588.11,586.92,5.135]
[1741493803807,0.31283275,588.1,586.92,5.135]
[1741493804707,0.31282883,588.09,586.92,5.135]
[1741493804902,0.31282883,588.08,586.92,5.135]
[1741493805108,0.31282883,588.1,586.92,5.135]
[1741493805306,0.29625846,588.08,586.92,5.135]
[1741493805504,0.31282883,588.07,586.92,5.135]
[1741493807716,0.31282883,588.13,586.93,0.34075613]
[1741493807915,0.31282883,588.12,586.93,0.34075613]
[1741493808114,0.29624963,588.06,586.93,0.34075613]
[1741493808315,0.31282883,588.05,586.93,0.34075613]
[1741493808515,0.31282883,588.13,586.93,0.34075613]
[1741493808710,0.31282883,588.12,586.93,0.34075613]
[1741493808912,0.31282883,588.11,586.93,0.34075613]
[1741493809113,0.31282883,588.13,586.93,0.34075613]
[1741493809311,0.29625089,588.11,586.93,0.34075613]
[1741493809510,0.31282883,588.1,586.93,0.34075613]
[1741493810617,0.31282883,588.27,586.93,0.34075613]
[1741493810916,0.29625468,588.09,586.93,0.34075613]
[1741493811116,0.31282883,588.08,586.93,0.34075613]
[1741493811416,0.31282883,588.27,586.93,5.09175613]
[1741493811611,0.31282883,588.26,586.93,5.09175613]
[1741493811808,0.29622946,588.07,586.93,5.09175613]
[1741493812014,1.26952077,588.28,586.93,5.09175613]
[1741493812316,0.29622063,588.06,586.93,5.09175613]
[1741493812513,1.26952077,588.28,586.93,5.09175613]
[1741493813116,1.26952077,588.36,586.93,5.09175613]
[1741493813417,0.31276455,588.27,586.93,5.09175613]
[1741493813711,0.31276455,588.26,586.93,5.09175613]
[1741493813916,0.31276455,588.34,586.93,5.09175613]
[1741493814115,0.65270981,588.33,586.93,5.09175613]
[1741493814309,0.65271559,588.32,586.93,5.09175613]
[1741493814513,0.31276455,588.31,586.93,5.09175613]
[1741493815116,1.26952077,588.29,586.93,5.09175613]
[1741493815416,0.31276455,588.28,586.93,5.09175613]
[1741493816922,0.29621937,588.27,586.93,5.09175613]
[1741493817122,0.31276455,588.26,586.93,5.09175613]
[1741493821326,0.29621937,588.27,586.93,5.09175613]
[1741493821527,1.26952077,588.2,586.93,5.09175613]
[1741493821825,0.31281206,588.19,586.93,5.09175613]
[1741493823029,0.29624333,588.18,586.93,5.09175613]
[1741493823230,0.31281206,588.17,586.93,5.09175613]
[1741493823429,0.3128264,588.16,586.93,5.09175613]
[1741493823626,0.3128264,588.17,586.93,5.09175613]
[1741493825838,0.2962635,588.16,586.93,5.09175613]
[1741493826130,0.3128264,588.15,586.93,5.09175613]
[1741493828834,1.26952077,588.19,586.93,5.09175613]
[1741493829031,0.31281296,588.18,586.93,5.09175613]
[1741493829831,0.29624711,588.17,586.93,5.09175613]
[1741493830035,0.31281296,588.16,586.93,5.09175613]
[1741493830633,0.29624711,588.17,586.93,5.09175613]
[1741493830827,0.31280395,588.16,586.93,5.09175613]
[1741493831729,0.31280395,588.15,586.93,5.09175613]
[1741493831934,0.29624963,588.15,586.93,5.09175613]
[1741493832134,0.31280395,588.14,586.93,5.09175613]
[1741493832529,0.29624963,588.15,586.93,5.09175613]
[1741493832735,0.31279403,588.14,586.93,5.09175613]
[1741493834835,1.26952077,588.22,586.93,5.09175613]
[1741493834836,0.31279403,588.21,586.93,5.09175613]
[1741493835036,0.31279403,588.2,586.93,5.09175613]
[1741493835336,0.31279403,588.19,586.93,5.09175613]
[1741493835531,0.31279403,588.21,586.93,5.09175613]
[1741493835732,0.31279403,588.2,586.93,5.09175613]
[1741493835931,0.29624333,588.18,586.93,5.09175613]
[1741493836136,0.31279403,588.17,586.93,5.09175613]
[1741493838035,0.29624333,588.18,586.93,5.09175613]
[1741493838339,0.31280457,588.17,586.93,5.09175613]
[1741493840836,0.31280457,588.22,586.93,5.09175613]
[1741493841039,0.29623576,588.16,586.93,5.09175613]
[1741493841236,0.31280457,588.15,586.93,5.09175613]
[1741493843639,1.26952077,588.21,586.93,5.09175613]
[1741493843838,0.29623828,588.14,586.93,5.09175613]
[1741493844039,0.31278731,588.13,586.93,5.09175613]
[1741493844240,0.31278731,588.12,586.93,5.09175613]
[1741493844441,0.31278731,588.28,586.93,5.09175613]
[1741493844738,0.29622189,588.11,586.93,5.09175613]
[1741493844944,0.31278731,588.1,586.93,5.09175613]
[1741493845239,0.31278731,588.09,586.93,5.09175613]
[1741493846840,0.31278731,588.25,586.93,5.09175613]
[1741493847045,0.29624585,588.08,586.93,5.09175613]
[1741493847247,0.31278731,588.07,586.93,5.09175613]
[1741493847642,0.31278731,588.06,586.93,5.09175613]
[1741493847840,0.29622568,588.06,586.93,5.09175613]
[1741493849548,1.26952077,588.25,586.93,5.09175613]
[1741493849743,0.31277317,588.24,586.93,5.09175613]
[1741493849949,0.29621937,588.05,586.93,5.09175613]
[1741493850149,0.31277317,588.04,586.93,5.09175613]
[1741493850346,0.31277317,588.24,586.93,5.09175613]
[1741493851047,0.29621937,588.23,586.93,5.09175613]
[1741493851247,0.31277317,588.22,586.93,5.09175613]
[1741493851447,1.26952077,588.09,586.93,5.09175613]
[1741493851645,0.31277317,588.08,586.93,5.09175613]
[1741493852951,0.29623955,588.07,586.93,5.09175613]
[1741493853151,0.31277199,588.06,586.93,5.09175613]
[1741493855658,0.31277056,588.05,586.93,5.09175613]
[1741493855848,0.31277056,588.19,586.93,5.09175613]
[1741493856049,0.29623072,588.05,586.93,5.09175613]
[1741493856249,1.26952077,588.2,586.93,5.09175613]
[1741493856651,0.31274583,588.19,586.93,5.09175613]
[1741493856850,0.60895638,588.19,586.93,5.09175613]
[1741493857050,0.31274583,588.18,586.93,5.09175613]
[1741493858860,0.60895764,588.17,586.93,5.09175613]
[1741493859058,0.31274583,588.16,586.93,5.09175613]
[1741493860166,0.29621181,588.17,586.93,5.09175613]
[1741493861061,0.31272705,588.16,586.93,5.09175613]
[1741493861461,0.29621181,588.17,586.93,5.09175613]
[1741493861666,0.31272702,588.16,586.93,5.09175613]
[1741493861866,0.31272702,588.15,586.93,5.09175613]
[1741493862068,0.31272702,588.31,586.93,5.09175613]
[1741493862763,0.2961803,588.3,586.93,5.09175613]
[1741493862964,0.31272702,588.29,586.93,5.09175613]
[1741493864860,0.29618282,588.28,586.93,5.09175613]
[1741493865268,0.31272702,588.27,586.93,5.09175613]
[1741493867762,0.31272702,588.29,586.93,5.09175613]
[1741493867968,0.29618534,588.26,586.93,5.09175613]
[1741493868267,0.31272702,588.25,586.93,5.09175613]
[1741493870768,0.29619668,588.24,586.93,5.09175613]
[1741493871173,0.31272702,588.23,586.93,5.09175613]
[1741493873871,0.29621811,588.22,586.93,5.09175613]
[1741493874276,0.31272702,588.21,586.93,5.09175613]
[1741493876775,0.31272702,588.31,586.93,5.09175613]
[1741493876979,0.29622063,588.2,586.93,5.09175613]
[1741493877274,0.31272702,588.19,586.93,5.09175613]
[1741493877478,0.31272702,588.31,586.93,5.09175613]
[1741493877678,0.31272702,588.3,586.93,5.09175613]
[1741493877978,0.29620803,588.3,586.93,5.09175613]
[1741493878178,0.31272702,588.29,586.93,5.09175613]
[1741493879078,0.29620803,588.3,586.93,5.09175613]
[1741493879281,1.26952077,588.25,586.93,5.09175613]
[1741493879579,0.31275865,588.24,586.93,5.09175613]
[1741493880881,0.31275257,588.23,586.93,5.09175613]
[1741493881080,0.31275257,588.22,586.93,5.09175613]
[1741493881381,0.31275257,588.21,586.93,5.09175613]
[1741493881682,0.31275257,588.2,586.93,5.09175613]
[1741493881981,0.31275257,588.19,586.93,5.09175613]
[1741493882181,1.26952077,588.25,586.93,5.09175613]
[1741493882383,0.31273946,588.24,586.93,5.09175613]
[1741493882682,1.58226023,588.24,586.93,5.09175613]
[1741493882882,0.29620424,588.23,586.93,5.09175613]
[1741493883183,0.6089437,588.23,586.93,5.09175613]
[1741493883482,0.31273946,588.22,586.93,5.09175613]
[1741493885281,1.26952077,588.19,586.93,5.09175613]
[1741493885481,0.31273946,588.18,586.93,5.09175613]
[1741493887180,0.31273946,588.21,586.93,5.09175613]
[1741493887380,0.31273946,588.2,586.93,5.09175613]
[1741493887580,1.26952077,588.22,586.93,5.09175613]
[1741493887782,0.31274765,588.21,586.93,5.09175613]
[1741493888584,1.26952077,588.17,586.93,5.09175613]
[1741493890879,0.29625089,588.2,586.93,5.09175613]
[1741493891586,0.33995104,588.32,586.93,5.09175613]
[1741493891978,0.29623828,588.19,586.93,5.09175613]
[1741493892182,0.33995104,588.32,586.93,5.09175613]
[1741493892885,0.29618534,588.31,586.93,5.09175613]
[1741493893081,0.3399626,588.3,586.93,5.09175613]
[1741493895887,0.29617904,588.29,586.93,5.09175613]
[1741493896085,0.33997416,588.28,586.93,5.09175613]
[1741493896383,0.31286289,588.27,586.93,5.09175613]
[1741493896580,0.33998572,588.26,586.93,5.09175613]
[1741493896780,0.31286289,588.25,586.93,5.09175613]
[1741493896986,0.33999728,588.24,586.93,5.09175613]
[1741493898788,0.60903525,588.23,586.93,5.09175613]
[1741493898991,0.65285245,588.22,586.93,5.09175613]
[1741493899282,0.65285823,588.21,586.93,5.09175613]
[1741493899587,0.31285022,588.2,586.93,5.09175613]
[1741493901886,0.2962572,588.19,586.93,5.09175613]
[1741493902086,0.31285022,588.18,586.93,5.09175613]
[1741493904087,0.31285022,588.17,586.93,5.09175613]
[1741493904288,0.31285022,588.16,586.93,5.09175613]
[1741493904488,0.31285022,588.2,586.93,5.09175613]
[1741493904884,0.63629473,588.19,586.93,5.09175613]
[1741493905089,0.65290669,588.18,586.93,5.09175613]
[1741493905286,0.65291247,588.17,586.93,5.09175613]
[1741493905487,0.31287473,588.16,586.93,5.09175613]
[1741493906085,0.31287436,588.15,586.93,5.09175613]
[1741493906284,0.31287436,588.14,586.93,5.09175613]
[1741493906484,0.31287436,588.13,586.93,5.09175613]
[1741493906690,0.31287436,588.16,586.93,5.09175613]
[1741493906892,0.31287436,588.15,586.93,5.09175613]
[1741493907086,0.31287436,588.16,586.93,5.09175613]
[1741493907392,0.31287436,588.15,586.93,5.09175613]
[1741493907690,0.31287436,588.14,586.93,5.09175613]
[1741493907887,0.31287436,588.13,586.93,5.09175613]
[1741493908190,0.31287436,588.12,586.93,5.09175613]
[1741493908391,0.31287436,588.11,586.93,5.09175613]
[1741493908586,0.31287436,588.14,586.93,5.09175613]
[1741493908891,0.31287436,588.13,586.93,5.09175613]
[1741493909091,0.31287436,588.14,586.93,5.09175613]
[1741493909293,0.31287436,588.13,586.93,5.09175613]
[1741493909493,0.29626981,588.15,586.93,5.09175613]
[1741493909687,0.31284679,588.14,586.93,5.09175613]
[1741493909885,0.29627233,588.12,586.93,5.09175613]
[1741493910088,0.31284679,588.11,586.93,5.09175613]
[1741493912990,0.31284679,588.16,586.93,5.09175613]
[1741493913293,0.31284679,588.15,586.93,5.09175613]
[1741493913493,0.31284679,588.16,586.93,5.09175613]
[1741493913692,0.31284679,588.15,586.93,5.09175613]
[1741493913892,0.29626981,588.14,586.93,5.09175613]
[1741493914287,0.31284679,588.13,586.93,5.09175613]
[1741493914994,0.29626981,588.14,586.93,5.09175613]
[1741493915194,0.31286471,588.12,586.93,5.09175613]
[1741493915495,0.31286471,588.11,586.93,5.09175613]
[1741493915695,0.31286471,588.13,586.93,5.09175613]
[1741493915895,0.31286471,588.12,586.93,5.09175613]
[1741493916096,0.31286471,588.11,586.93,5.09175613]
[1741493916292,0.31286471,588.13,586.93,5.09175613]
[1741493916494,0.31286471,588.12,586.93,5.09175613]
[1741493916693,0.31286471,588.13,586.93,5.09175613]
[1741493916891,0.31286471,588.12,586.93,5.09175613]
[1741493917191,0.31285128,588.11,586.93,5.09175613]
[1741493917595,0.31285128,588.1,586.93,5.09175613]
[1741493917897,0.31285128,588.09,586.93,5.09175613]
[1741493918097,0.31285128,588.13,586.93,5.09175613]
[1741493918289,0.31285128,588.12,586.93,5.09175613]
[1741493918490,0.31285128,588.13,586.93,5.09175613]
[1741493918692,0.31285128,588.12,586.93,5.09175613]
[1741493918894,0.29627359,588.11,586.93,5.09175613]
[1741493919090,0.31285128,588.1,586.93,5.09175613]
[1741493921902,0.31285128,588.09,586.93,5.09175613]
[1741493922102,0.31285128,588.08,586.93,5.09175613]
[1741493922396,0.31285128,588.07,586.93,5.09175613]
[1741493922601,0.31285128,588.16,586.93,5.09175613]
[1741493922903,0.29625972,588.06,586.93,5.09175613]
[1741493923103,0.31285128,588.05,586.93,5.09175613]
[1741493923298,0.31285128,588.16,586.93,5.09175613]
[1741493924302,1.60955851,588.17,586.93,5.09175613]
[1741493924503,0.29625342,588.15,586.93,5.09175613]
[1741493924704,0.31282646,588.14,586.93,5.09175613]
[1741493926000,0.29625342,588.15,586.93,5.09175613]
[1741493926205,0.31280179,588.14,586.93,5.09175613]
[1741493926906,1.26952077,588.11,586.93,5.09175613]
[1741493927106,0.31280179,588.1,586.93,5.09175613]
[1741493929506,0.31280179,588.11,586.93,5.09175613]
[1741493929708,0.31280179,588.1,586.93,5.09175613]
[1741493929904,0.31280997,588.09,586.93,5.09175613]
[1741493930103,0.31280997,588.11,586.93,5.09175613]
[1741493930404,0.31280997,588.1,586.93,5.09175613]
[1741493930604,0.31280997,588.09,586.93,5.09175613]
[1741493930805,0.31280997,588.11,586.93,5.09175613]
[1741493931005,0.29624837,588.09,586.93,5.09175613]
[1741493931210,0.31280997,588.08,586.93,5.09175613]
[1741493931612,0.29624837,588.09,586.93,5.09175613]
[1741493931813,0.31280991,588.08,586.93,5.09175613]
[1741493933819,1.26952077,588.1,586.93,5.09175613]
[1741493934020,0.29625215,588.07,586.93,5.09175613]
[1741493934221,0.31280991,588.06,586.93,5.09175613]
[1741493935516,0.31281051,588.05,586.93,5.09175613]
[1741493935722,0.31281051,588.04,586.93,5.09175613]
[1741493936024,0.31281051,588.03,586.93,5.09175613]
[1741493936221,1.26952077,587.99,586.93,5.09175613]
[1741493936421,0.31281051,587.98,586.93,5.09175613]
[1741493936822,0.60907528,587.98,586.93,5.09175613]
[1741493937023,0.31281051,587.97,586.93,5.09175613]
[1741493939826,0.31281051,588.06,586.93,5.09175613]
[1741493940023,0.31281051,588.05,586.93,5.09175613]
[1741493940228,0.31281051,588.06,586.93,5.09175613]
[1741493940925,0.29625468,588.05,586.93,5.09175613]
[1741493941123,0.31281051,588.04,586.93,5.09175613]